Workbook

Sheet AID
A1: Teresita's Tours | T1: DESPROTEGIDO | U1: AGENCIA | V1: OB | W1: TM | X1: EJ | Y1: Z8 | Z1: A4
A2: Travel Agency & Tour Operator | R2: N.D. AGT Nº | S2: 10103 | U2: INSIDE SUCRE AGENCIA DE VIAJES Y TURISMO | V2: 0.08 | W2: 0.05 | X2: 0.05 | Y2: 0.06 | Z2: 0.05
A3: Sucre - Bolivia
A4: CLIENTE | C4: INSIDE SUCRE AGENCIA DE VIAJES Y TURISMO | Q4: FECHA DE IMPRESIÓN | R4: 2016-03-07
A5: DIRECCION | C5: =IF(C4="","",VLOOKUP(C4,[1]CLIENTES!$A$3:$E$148,2,0)) -> JUNIN | Q5: TELEFONO | R5: =IF(C4="","",VLOOKUP(C4,[1]CLIENTES!$A$3:$E$148,3,0)) -> 6415003
A6: Nº | B6: FECHA DE | C6: COD | D6: DOCUMENTO Nº | F6: RUTA Y/O SERVICIO | K6: PASAJER@ | L6: IMPORTE | N6: NETO | P6: COMISION | R6: NETO A PAGAR
B7: EMISION | L7: BOLIVIANOS | M7: DOLARES | N7: BOLIVIANOS | O7: DOLARES | P7: BOLIVIANOS | Q7: DOLARES | R7: BOLIVIANOS | S7: DOLARES
A8: =IF(B8="","",COUNT(B8:B8)) -> 1 | B8: 2016-03-04 | C8: OB | D8: 930 | E8: 1661651252 | F8: SRE | G8: CBB | K8: GORENA JUAN | L8: 231 | M8: 0 | N8: 194 | O8: 0 | P8: =IF(N8=0,0,+N8*T8) -> 15.52 | Q8: 0 | R8: =IF(L8="",0,L8-P8) -> 215.48 | S8: =M8-Q8 -> 0 | T8: =INDEX($V$1:$Z$2,MATCH($C$4,$U$1:$U$2,0),MATCH($C8,$V$1:$Z$1,0)) -> 0.08 | U8: 1
A9: =IF(B9="","",COUNT($B$8:B9)) -> 2 | B9: 2016-03-04 | C9: OB | D9: 930 | E9: 1661651264 | F9: SRE | G9: LPB | H9: CBB | I9: SRE | K9: ORTUSTE LAURA | L9: 590 | M9: 0 | N9: 482 | O9: 0 | P9: 38.56 | Q9: 0 | R9: =IF(L9="",0,L9-P9) -> 551.44 | S9: =M9-Q9 -> 0 | T9: 0.08 | U9: =+U8+1 -> 2
A10: =IF(B10="","",COUNT($B$8:B10)) -> 3 | B10: 2016-03-04 | C10: OB | D10: 930 | E10: 1661651265 | F10: SRE | G10: LPB | H10: CBB | I10: SRE | K10: RENTERIA WILBER | L10: 590 | M10: 0 | N10: 482 | O10: 0 | P10: 38.56 | Q10: 0 | R10: =IF(L10="",0,L10-P10) -> 551.44 | S10: =M10-Q10 -> 0 | T10: 0.08 | U10: 3
A11: =IF(B11="","",COUNT($B$8:B11)) -> 4 | B11: 2016-03-04 | C11: OB | D11: 930 | E11: 1661651266 | F11: VVI | G11: CBB | H11: SRE | K11: ANTELO LAURA MATILDE | L11: 249 | M11: 0 | N11: 196 | O11: 0 | P11: 15.68 | Q11: 0 | R11: =IF(L11="",0,L11-P11) -> 233.32 | S11: =M11-Q11 -> 0 | T11: 0.08 | U11: 4
A12: =IF(B12="","",COUNT($B$8:B12)) -> 5 | B12: 2016-03-04 | C12: OB | D12: 930 | E12: 1661651267 | F12: LPB | G12: SRE | K12: ARCIENEGA ADALIT | L12: 443 | M12: 0 | N12: 359 | O12: 0 | P12: 28.72 | Q12: 0 | R12: =IF(L12="",0,L12-P12) -> 414.28 | S12: =M12-Q12 -> 0 | T12: 0.08 | U12: 5
A13: =IF(B13="","",COUNT($B$8:B13)) -> 6 | B13: 2016-03-04 | C13: OB | D13: 930 | E13: 1661651283 | F13: CBB | G13: SRE | K13: COCA ANTEZANA ALFREDO | L13: 210 | M13: 0 | N13: 163 | O13: 0 | P13: 13.04 | Q13: 0 | R13: 196.96 | S13: 0 | T13: 0.08 | U13: =+#REF!+1 -> 
A14: =IF(B14="","",COUNT($B$8:B14)) ->  | P14: 0 | Q14: 0 | R14: =IF(L14="",0,L14-P14) -> 0 | S14: =M14-Q14 -> 0 | U14: =+#REF!+1 -> 
K15: TOTALES | L15: =SUM(L8:L14) -> 2313 | M15: =SUM(M8:M14) -> 0 | N15: =SUM(N8:N14) -> 1876 | O15: =SUM(O8:O14) -> 0 | P15: =SUM(P8:P14) -> 150.08 | Q15: =SUM(Q8:Q14) -> 0 | R15: =SUM(R8:R14) -> 2162.92 | S15: =SUM(S8:S14) -> 0

Sheet NCAGTV
A1: Nº | B1: AGENCIA | C1: =CONCATENATE("BOB "&SUBTOTAL(9,C2:C290)) -> BOB 0 | D1: =CONCATENATE("USD "&SUBTOTAL(9,D2:D290)) -> USD 0 | E1: =CONCATENATE("COMISION BOB "&SUBTOTAL(9,E2:E290)) -> COMISION BOB 0 | F1: FECHA DE IMPRESIÓN | G1: FECHA DE ENTREGA | H1: FECHA DE VENCIMIENTO | I1: RECIBO | J1: FACTURA | K1: OBS. VLADY | L1: OBSERVACIONES | M1: =IF(A1-#REF!=1,"OK","FA") ->  | N1: =IFERROR(HYPERLINK("#" & ADDRESS(MATCH(A1,[1]NCAGTE!$S:$S,0),19,1,1,"NCAGTE"), "VER NOTA"),"NO VER") -> NO VER | O1: DESPROTEGIDO
H2: =IF(G2="","",+G2+15) -> 
H4: =IF(G4="","",+G4+15) -> 
H68: =IF(G68="","",+G68+15) -> 
H132: =IF(G132="","",+G132+15) -> 
H196: =IF(G196="","",+G196+15) -> 
H260: =IF(G260="","",+G260+15) -> 
